bitfinex-derivatives/quotes_SOLF0:USTF0_20250106
["timestamp","ask_amount","ask_price","bid_price","bid_amount"]
[1736129473095,3.22,215.98,215.82,7.6839]
[1736129473692,3.22,215.98,215.95,2.3161]
[1736129474297,3.22,215.98,215.82,7.6839]
[1736129474514,3.22,216.0,215.82,7.6839]
[1736129474895,3.22,216.0,215.95,2.3161]
[1736129475092,3.22,216.0,215.82,7.6839]
[1736129476197,2.92,216.02,215.82,7.6839]
[1736129476401,3.22,216.01,215.82,4.4639]
[1736129476594,4.7182,216.01,215.82,4.4639]
[1736129476799,4.7182,216.01,215.76,24.64668766]
[1736129476800,0.74499538,216.0,215.76,24.64668766]
[1736129476995,18.6182,216.01,215.76,24.64668766]
[1736129477203,0.74506873,216.0,215.76,24.64668766]
[1736129477401,0.74506873,216.0,215.75,4.3874]
[1736129477999,13.9,215.99,215.75,4.3874]
[1736129478202,13.9,215.99,215.76,2.3181]
[1736129478203,2.3165,215.92,215.76,2.3181]
[1736129478405,8.33666873,215.91,215.76,2.3181]
[1736129478712,2.3175,215.82,215.74,2.3183]
[1736129479003,3.22,215.81,215.74,2.3183]
[1736129479193,3.22,215.81,215.68,4.6078]
[1736129479801,3.22,215.81,215.68,1.3878]
[1736129481305,3.22,215.81,215.69,2.3189]
[1736129481499,2.9625,215.8,215.66,1.4466]
[1736129481998,2.318,215.78,215.66,1.4466]
[1736129482196,2.9625,215.8,215.66,1.4466]
[1736129482507,3.22,215.79,215.66,1.4466]
[1736129482900,3.22,215.79,215.73,2.3184]
[1736129483106,3.22,215.79,215.66,1.4466]
[1736129483709,3.22,215.79,215.69,2.3188]
[1736129484110,3.22,215.79,215.66,1.4466]
[1736129484407,5.5379,215.79,215.66,1.4466]
[1736129485012,2.318,215.78,215.66,1.4466]
[1736129485207,2.9625,215.8,215.66,1.4466]
[1736129485402,1.4982,215.91,215.66,1.4466]
[1736129485403,3.22,215.79,215.66,1.4466]
[1736129486507,3.22,215.79,215.74,2.3183]
[1736129486805,3.22,215.79,215.66,1.4466]
[1736129487315,2.8638,215.9,215.66,1.4466]
[1736129487504,2.8638,215.9,215.67,3.22]
[1736129487706,2.3169,215.89,215.82,2.3175]
[1736129488008,3.22,215.88,215.73,3.22]
[1736129488218,3.22,215.88,215.74,2.7835]
[1736129488602,3.22,215.88,215.75,1.4092]
[1736129489009,3.18,215.89,215.85,2.3172]
[1736129489203,3.18,215.89,215.75,1.4092]
[1736129489408,3.18,215.89,215.84,2.3173]
[1736129489611,3.18,215.89,215.75,1.4092]
[1736129490017,3.18,215.89,215.85,2.3172]
[1736129490619,2.8638,215.9,215.75,1.4092]
[1736129490810,3.18,215.92,215.75,1.4092]
[1736129491210,3.18,215.93,215.75,1.4092]
[1736129492210,3.18,215.93,215.8,2.3177]
[1736129492419,3.18,215.93,215.75,1.4092]
[1736129493418,2.3165,215.91,215.84,2.3172]
[1736129493716,3.18,215.93,215.75,1.4092]
[1736129495020,2.3164,215.92,215.84,2.3172]
[1736129495318,2.3164,215.92,215.75,1.4092]
[1736129496114,2.3166,215.91,215.8,2.3177]
[1736129496314,2.3166,215.91,215.75,1.4092]
[1736129496819,2.3166,215.91,215.85,2.3172]
[1736129497323,2.8753,216.0,215.75,1.4092]
[1736129497622,3.18,215.99,215.76,3.18]
[1736129498416,3.18,215.98,215.76,3.18]
[1736129498819,3.18,215.98,215.9,2.3166]
[1736129499215,2.316,215.96,215.9,2.3166]
[1736129499819,3.18,215.95,215.9,2.3166]
[1736129500323,3.18,215.95,215.91,2.3165]
[1736129500519,3.18,215.95,215.76,9.34167191]
[1736129501014,3.18,215.95,215.77,10.32714904]
[1736129501219,2.8753,216.0,215.77,10.32714904]
[1736129501220,3.18,215.96,215.77,10.32714904]
[1736129501823,2.3155,216.02,215.77,10.32714904]
[1736129502015,3.18,216.01,215.79,6.16167191]
[1736129502327,52.98,216.03,215.97,2.3159]
[1736129502625,4.3807,216.11,215.87,3.18]
[1736129502821,4.3807,216.11,215.88,2.9964]
[1736129502822,3.92480843,216.1,215.88,2.9964]
[1736129503028,2.3148,216.07,216.0,2.3155]
[1736129503320,3.18,216.1,216.0,2.3155]
[1736129503520,2.3149,216.06,215.99,2.3157]
[1736129504229,3.18,216.06,215.88,4.4482]
[1736129504522,3.18,216.06,215.89,3.18]
[1736129504732,2.3151,216.04,215.97,2.3159]
[1736129505024,3.18,216.06,215.89,3.18]
[1736129505325,2.3153,216.03,215.89,3.18]
[1736129505529,2.3153,216.03,215.88,4.4482]
[1736129505718,2.3154,216.02,215.93,2.3163]
[1736129505922,3.18,216.06,215.88,7.6282]
[1736129506923,3.18,216.06,215.88,4.4482]
[1736129507130,2.3156,216.0,215.92,2.3163]
[1736129507333,3.18,215.99,215.88,4.4482]
[1736129507627,3.18,215.99,215.82,6.16167191]
[1736129507628,3.18,215.98,215.82,6.16167191]
[1736129507928,4.6534,215.97,215.82,6.16167191]
[1736129508125,2.3164,215.92,215.85,2.3172]
[1736129509119,4.6534,215.97,215.8,1.3912]
[1736129509323,5.4961,215.96,215.88,2.3168]
[1736129509724,3.18,215.96,215.8,1.3912]
[1736129510332,3.18,216.0,215.8,1.3912]
[1736129510923,3.18,216.0,215.94,2.3162]
[1736129511126,3.18,216.0,215.87,3.18]
[1736129511329,3.18,216.0,215.88,1.5075]
[1736129512130,2.3158,215.98,215.92,2.3164]
[1736129512332,3.18,215.97,215.88,1.5075]
[1736129512724,5.4959,215.97,215.89,2.3167]
[1736129513021,3.18,215.97,215.88,1.5075]
[1736129513828,3.18,215.97,215.81,1.4884]
[1736129514029,3.18,215.97,215.87,2.317]
[1736129514232,3.18,215.97,215.81,1.4884]
[1736129515123,1.4379,216.05,215.81,1.4884]
[1736129515427,3.92494269,216.04,215.81,1.4884]
[1736129515623,3.18,216.04,215.81,1.4884]
[1736129515927,2.3159,215.98,215.89,2.3167]
[1736129516131,3.18,215.97,215.89,2.3167]
[1736129516325,3.18,215.96,215.81,4.6684]
[1736129516631,2.3163,215.94,215.86,2.317]
[1736129516830,3.18,215.95,215.81,4.6684]
[1736129517043,2.3164,215.93,215.86,2.317]
[1736129517227,3.18,215.95,215.86,2.317]
[1736129517630,3.18,215.95,215.88,2.3168]
[1736129517826,3.18,215.95,215.8,1.3912]
[1736129518126,1.4616,215.94,215.75,1.5147]
[1736129518336,4.4976,215.94,215.75,1.5147]
[1736129518535,4.4976,215.94,215.68,6.16167191]
[1736129518732,2.3172,215.85,215.77,2.318]
[1736129518932,3.16,215.84,215.77,2.318]
[1736129519432,5.4773,215.84,215.77,2.318]
[1736129519636,3.16,215.84,215.78,2.3179]
[1736129520036,3.16,215.84,215.71,1.3941]
[1736129520632,2.3176,215.82,215.75,2.3182]
[1736129520826,3.16,215.84,215.75,2.3182]
[1736129521033,3.16,215.84,215.71,1.3941]
[1736129521839,4.4976,215.94,215.72,3.16]
[1736129522047,3.16,215.93,215.72,3.16]
[1736129523140,5.4763,215.93,215.85,2.3171]
[1736129523338,3.16,215.93,215.79,3.16]
[1736129523538,3.16,215.93,215.8,4.4557]
[1736129524743,5.4764,215.93,215.86,2.3171]
[1736129524952,53.0,215.95,215.8,4.4557]
[1736129525236,3.16,215.94,215.9,2.3166]
[1736129525443,3.16,215.96,215.8,4.4557]
[1736129525835,2.3156,216.0,215.91,2.3165]
[1736129526031,3.16,215.99,215.91,2.3165]
[1736129526232,3.16,215.98,215.91,2.3165]
[1736129526437,3.16,215.97,215.91,2.3165]
[1736129526641,3.16,215.96,215.8,4.4557]
[1736129526937,3.16,215.96,215.89,2.3167]
[1736129527142,3.16,215.96,215.8,4.4557]
[1736129528931,3.16,215.96,215.89,2.3167]
[1736129529237,3.16,215.96,215.8,4.4557]
[1736129529541,3.16,215.96,215.89,2.3167]
[1736129529936,5.476,215.96,215.88,2.3168]
[1736129530133,3.16,215.96,215.8,4.4557]
[1736129530537,3.16,215.96,215.84,2.3172]
[1736129530740,3.16,215.96,215.8,4.4557]
[1736129531835,3.16,215.96,215.91,2.3165]
[1736129532432,3.16,215.96,215.92,2.3164]
[1736129532641,3.16,215.96,215.8,4.4557]
[1736129533040,3.16,215.96,215.9,2.3166]
[1736129534042,5.4761,215.96,215.8,4.4557]
[1736129534242,3.16,215.96,215.8,4.4557]
[1736129534439,4.4108,215.95,215.8,4.4557]
[1736129535344,6.7269,215.95,215.87,2.3169]
[1736129535747,6.7269,215.95,215.8,4.4557]
[1736129537145,6.7269,215.95,215.84,2.3172]
[1736129537352,6.7269,215.95,215.8,7.6157]
[1736129537549,3.16,215.98,215.8,7.6157]
[1736129537752,1.4993,216.03,215.86,2.317]
[1736129537952,2.3158,215.98,215.8,7.6157]
[1736129538154,3.16,216.02,215.8,7.6157]
[1736129538453,3.16,216.02,215.86,2.317]
[1736129538649,2.3157,216.0,215.8,7.6157]
[1736129539246,2.3157,216.0,215.8,4.4557]
[1736129539449,2.3157,216.0,215.81,3.16]
[1736129539752,3.16,216.01,215.87,2.317]
[1736129539948,0.74501183,216.0,215.8,7.6157]
[1736129540154,3.16,216.01,215.8,7.6157]
[1736129540354,1.3896,215.99,215.8,7.6157]
[1736129540554,2.3162,215.94,215.87,2.3169]
[1736129540754,3.16,215.93,215.8,4.4557]
[1736129540950,4.6014,215.93,215.8,1.4965]
[1736129541150,2.3168,215.89,215.8,2.3177]
[1736129541354,4.6014,215.93,215.75,9.06847191]
[1736129542055,4.6014,215.93,215.75,2.9068]
[1736129542453,2.3167,215.9,215.75,2.9068]
[1736129542954,2.3168,215.89,215.81,2.3175]
[1736129543146,4.6014,215.93,215.75,2.9068]
[1736129543351,1.4993,215.88,215.74,1.4828]
[1736129543657,3.16,215.87,215.7,12.30017191]
[1736129543854,4.579,215.87,215.7,9.14017191]
[1736129544252,4.579,215.87,215.75,2.3182]
[1736129545051,2.3175,215.82,215.75,2.3182]
[1736129545248,3.16,215.81,215.75,2.3182]
[1736129545450,4.6884,215.81,215.65,6.16167191]
[1736129545655,2.318,215.78,215.65,6.16167191]
[1736129546256,2.318,215.78,215.64,2.9785]
[1736129546456,2.318,215.78,215.71,2.3187]
[1736129547749,2.3181,215.77,215.69,2.3188]
[1736129547949,2.3181,215.77,215.64,2.9785]
[1736129548156,2.3181,215.77,215.69,2.3188]
[1736129548358,2.3184,215.74,215.59,1.5179]
[1736129548560,3.12,215.73,215.59,1.5179]
[1736129548764,1.5113,215.72,215.63,2.3195]
[1736129549060,1.5113,215.72,215.57,2.9404]
[1736129549361,1.5113,215.72,215.53,1.444]
[1736129549561,2.3188,215.71,215.55,1.4624]
[1736129549859,3.12,215.71,215.55,1.4624]
[1736129550453,3.12,215.71,215.69,2.3189]
[1736129552363,3.12,215.71,215.66,2.3192]
[1736129552775,3.12,215.71,215.58,3.12]
[1736129553368,3.12,215.71,215.61,2.3197]
[1736129553664,3.12,215.71,215.58,3.12]
[1736129554359,3.12,215.71,215.55,1.4624]
[1736129554663,3.12,215.71,215.68,2.3189]
[1736129555465,3.12,215.71,215.66,2.3191]
[1736129555662,3.12,215.71,215.56,3.12]
[1736129556057,3.12,215.71,215.67,2.319]
[1736129556563,3.12,215.71,215.56,3.12]
[1736129557359,3.12,215.71,215.55,1.4624]
[1736129557554,3.12,215.71,215.56,3.12]
[1736129557763,3.12,215.71,215.55,1.4624]
[1736129557966,3.12,215.71,215.55,4.5824]
[1736129558160,5.4387,215.71,215.55,4.5824]
[1736129558359,3.12,215.71,215.55,4.5824]
[1736129558765,2.3188,215.7,215.59,2.3199]
[1736129558962,3.12,215.71,215.55,1.4624]
[1736129559464,3.12,215.71,215.54,1.478]
[1736129559465,17.02,215.71,215.54,1.478]
[1736129559660,17.02,215.71,215.53,1.444]
[1736129559661,17.02,215.71,215.48,1.4172]
[1736129559864,17.02,215.71,215.48,4.295]
[1736129560660,2.3193,215.65,215.57,2.3201]
[1736129560965,55.9308,215.75,215.48,4.295]
[1736129560966,3.12,215.64,215.48,4.295]
[1736129561168,2.3197,215.62,215.52,2.3207]
[1736129561360,3.12,215.61,215.48,4.295]
[1736129562369,3.12,215.61,215.54,2.3204]
[1736129562659,3.12,215.61,215.48,4.295]
[1736129562960,2.3199,215.6,215.53,2.3206]
[1736129563266,3.12,215.59,215.53,2.3206]
[1736129563467,3.12,215.59,215.48,4.295]
[1736129564558,3.12,215.67,215.59,2.3199]
[1736129564959,2.3193,215.66,215.5,3.12]
[1736129565157,3.12,215.67,215.48,7.415]
[1736129566166,5.4392,215.67,215.48,7.415]
[1736129566366,5.4392,215.67,215.6,2.3199]
[1736129566556,5.4392,215.67,215.48,7.415]
[1736129566557,3.12,215.67,215.48,7.415]
[1736129566758,3.12,215.67,215.48,4.295]
[1736129566968,3.12,215.67,215.59,2.3199]
[1736129567168,3.12,215.67,215.49,3.12]
[1736129567369,2.3197,215.63,215.48,4.295]
[1736129567971,1.5062,215.66,215.52,2.3206]
[1736129568159,2.9372,215.62,215.52,2.3206]
[1736129568380,3.12,215.61,215.52,2.3206]
[1736129568863,2.32,215.59,215.52,2.3206]
[1736129569569,17.02,215.61,215.34,6.16167191]
[1736129569760,3.12,215.61,215.4,1.4921]
[1736129570163,2.3201,215.58,215.47,2.3213]
[1736129570365,3.12,215.61,215.41,3.12]
[1736129570865,3.12,215.61,215.48,2.3211]
[1736129570866,2.3203,215.56,215.48,2.3211]
[1736129571070,3.12,215.55,215.41,3.12]
[1736129571371,3.12,215.55,215.5,2.3209]
[1736129571570,3.12,215.55,215.41,3.12]
[1736129571973,3.12,215.55,215.51,2.3208]
[1736129572370,3.12,215.55,215.41,3.12]
[1736129573074,3.12,215.55,215.54,2.3205]
[1736129573475,3.12,215.59,215.46,2.3213]
[1736129573774,3.12,215.59,215.41,3.12]
[1736129573775,3.12,215.59,215.47,2.9401]
[1736129574271,13.9,215.73,215.47,6.0601]
[1736129574477,18.1557,215.73,215.47,6.0601]
[1736129574678,5.4386,215.72,215.47,6.0601]
[1736129574969,3.12,215.72,215.47,6.0601]
[1736129575476,2.3191,215.67,215.47,6.0601]
[1736129575678,3.12,215.66,215.47,12.22177191]
[1736129575872,3.12,215.65,215.47,12.22177191]
[1736129576477,3.12,215.65,215.48,10.34069132]
[1736129576682,3.12,215.65,215.49,3.12]
[1736129576876,3.12,215.65,215.49,4.5266]
[1736129577078,3.12,215.65,215.59,2.3199]
[1736129577276,3.12,215.65,215.51,3.12]
[1736129578376,3.12,215.65,215.49,1.4066]
[1736129578680,2.3197,215.62,215.53,2.3205]
[1736129578880,2.3197,215.62,215.49,1.4066]
[1736129580075,2.3197,215.62,215.55,2.3204]
[1736129581283,3.12,215.65,215.51,2.3208]
[1736129581577,2.8714,215.61,215.51,2.3208]
[1736129581880,2.8714,215.61,215.49,1.4066]
[1736129582380,2.3202,215.57,215.51,2.3207]
[1736129582577,3.1,215.57,215.51,2.3207]
[1736129582785,3.1,215.57,215.49,1.4066]
[1736129583582,3.1,215.57,215.53,2.3205]
[1736129583784,3.1,215.57,215.49,1.4066]
[1736129584673,3.1,215.61,215.49,1.4066]
[1736129585088,3.1,215.61,215.56,2.3203]
[1736129585290,3.1,215.61,215.49,1.4066]
[1736129585484,3.1,215.61,215.49,4.5066]
[1736129585692,3.7341,215.7,215.49,4.5066]
[1736129585985,2.9177,215.72,215.49,4.5066]
[1736129586393,3.1,215.75,215.49,4.5066]
[1736129586783,3.1,215.75,215.49,1.4066]
[1736129587018,3.1,215.75,215.55,18.48501575]
[1736129587186,17.0,215.75,215.56,6.16167191]
[1736129587985,2.3191,215.68,215.6,2.3198]
[1736129588190,2.3191,215.68,215.56,11.85222126]
[1736129589191,3.1,215.69,215.58,2.3201]
[1736129589395,2.3192,215.66,215.55,3.1]
[1736129589586,3.1,215.69,215.55,3.1]
[1736129590689,2.3191,215.68,215.62,2.3196]
[1736129590894,3.1,215.69,215.55,3.1]
[1736129591394,3.1,215.69,215.55,9.26167191]
[1736129592298,3.1,215.69,215.56,4.21184784]
[1736129592495,5.4189,215.69,215.56,4.21184784]
[1736129592691,3.1,215.69,215.56,4.21184784]
[1736129593691,3.1,215.69,215.57,1.4682]
[1736129593891,3.1,215.71,215.57,1.4682]
[1736129594095,3.1,215.72,215.58,1.4311]
[1736129594298,2.938,215.79,215.58,1.4311]
[1736129594299,5.4186,215.73,215.58,1.4311]
[1736129594493,2.3186,215.73,215.58,1.4311]
[1736129594796,2.3186,215.72,215.65,2.3193]
[1736129595395,2.3186,215.72,215.62,2.3196]
[1736129595595,2.3186,215.72,215.58,1.4311]
[1736129595897,2.3186,215.72,215.65,2.3192]
[1736129596090,2.3185,215.73,215.58,1.4311]
[1736129596291,3.1,215.74,215.58,1.4311]
[1736129596487,2.3187,215.72,215.65,2.3193]
[1736129596691,3.1,215.74,215.58,4.5311]
[1736129597100,2.3188,215.71,215.58,4.5311]
[1736129597396,3.1,215.74,215.58,4.5311]
[1736129598093,3.1,215.74,215.62,2.3196]
[1736129599002,0.74612749,215.73,215.62,2.3196]
[1736129599192,2.3191,215.68,215.62,2.3196]
[1736129599395,3.1,215.67,215.62,2.3196]
[1736129599593,3.1,215.67,215.58,2.3201]
[1736129599799,2.9458,215.66,215.58,2.3201]
[1736129599996,2.3196,215.63,215.52,4.3324]
[1736129600706,2.3197,215.62,215.52,4.3324]
[1736129601804,3.1,215.67,215.64,2.3193]
[1736129602012,3.1,215.67,215.52,4.3324]
[1736129602305,3.1,215.67,215.64,2.3194]
[1736129602901,3.1,215.67,215.62,2.3196]
[1736129603710,3.1,215.67,215.52,4.3324]
[1736129604406,2.3193,215.65,215.6,2.3198]
[1736129604605,3.1,215.67,215.52,4.3324]
[1736129605003,2.3198,215.61,215.52,4.3324]
[1736129605198,5.4198,215.61,215.52,4.3324]
[1736129606008,2.3199,215.6,215.53,2.3205]
[1736129606207,3.1,215.61,215.45,6.16167191]
[1736129606505,3.1,215.61,215.46,1.4607]
[1736129606705,2.3203,215.56,215.46,1.4607]
[1736129606913,3.1,215.55,215.46,1.4607]
[1736129607311,5.4204,215.55,215.48,2.3211]
[1736129607507,3.1,215.55,215.44,26.02948766]
[1736129607810,3.1,215.55,215.44,1.3828]
[1736129608015,13.71524382,215.65,215.44,1.3828]
[1736129608016,7.96120756,215.65,215.44,1.3828]
[1736129608314,2.3197,215.62,215.45,3.12]
[1736129608507,3.12,215.64,215.45,3.12]
[1736129608911,1.4162,215.63,215.45,3.12]
[1736129609309,2.3199,215.6,215.45,3.12]
[1736129610002,2.3201,215.58,215.45,3.12]
[1736129610207,5.4401,215.58,215.45,3.12]
[1736129610410,3.12,215.58,215.53,2.3205]
[1736129610713,3.12,215.58,215.45,3.12]
[1736129610912,3.12,215.58,215.44,1.3828]
[1736129611108,3.12,215.58,215.51,2.3208]
[1736129611307,3.12,215.58,215.44,1.3828]
[1736129611814,1.4162,215.63,215.44,1.3828]
[1736129611815,3.12,215.62,215.44,1.3828]
[1736129612209,3.12,215.62,215.55,2.3203]
[1736129612504,3.12,215.62,215.48,3.12]
[1736129612808,3.12,215.63,215.49,2.9308]
[1736129613313,3.12,215.63,215.58,2.3201]
[1736129613513,4.4938,215.69,215.58,2.3201]
[1736129613714,2.3195,215.64,215.58,2.3201]
[1736129613903,3.12,215.63,215.58,2.3201]
[1736129614814,2.3192,215.66,215.61,2.3197]
[1736129615013,3.12,215.67,215.49,2.9308]
[1736129615412,13.9,215.76,215.49,2.9308]
[1736129615619,3.86613039,215.75,215.49,2.9308]
[1736129616117,0.74613039,215.74,215.64,2.3194]
[1736129616317,3.12,215.75,215.64,2.3194]
[1736129616518,2.3187,215.71,215.65,2.3193]
[1736129617913,3.12,215.75,215.66,2.3192]
[1736129618111,2.3186,215.73,215.66,2.3192]
[1736129618309,3.12,215.75,215.66,2.3192]
[1736129618916,3.12,215.75,215.55,3.12]
[1736129619319,2.3191,215.68,215.54,4.418]
[1736129619516,3.12,215.67,215.54,7.538]
[1736129619824,2.3195,215.64,215.54,7.538]
[1736129620029,5.4395,215.64,215.54,4.418]
[1736129620218,5.4395,215.64,215.58,2.32]
[1736129620722,5.4395,215.64,215.54,4.418]
[1736129621023,3.12,215.64,215.54,4.418]
[1736129621223,3.12,215.64,215.6,2.3199]
[1736129622426,3.12,215.64,215.54,4.418]
[1736129622817,3.12,215.68,215.54,4.418]
[1736129623320,1.402,215.77,215.54,4.418]
[1736129623321,3.12,215.69,215.54,4.418]
[1736129623626,3.12,215.7,215.54,4.418]
[1736129624019,1.402,215.77,215.54,10.57967191]
[1736129624228,3.12,215.76,215.54,10.57967191]
[1736129624527,3.12,215.75,215.68,2.319]
[1736129624725,3.12,215.74,215.68,2.319]
[1736129625021,3.12,215.74,215.7,2.3188]
[1736129625228,3.12,215.75,215.7,2.3188]
[1736129628353,13.9,215.88,215.6,3.12]
[1736129628524,3.12,215.8,215.6,3.12]
[1736129629027,3.12,215.79,215.6,3.12]
[1736129629529,3.12,215.79,215.61,4.2029238]
[1736129630024,3.12,215.79,215.62,1.4231]
[1736129630528,3.12,215.79,215.72,2.3185]
[1736129630732,5.4378,215.79,215.72,2.3185]
[1736129630928,3.12,215.79,215.7,2.3187]
[1736129631129,2.318,215.78,215.66,3.12]
[1736129631526,2.8902,215.85,215.76,2.3181]
[1736129631725,2.3175,215.83,215.66,3.12]
[1736129632124,3.12,215.84,215.77,2.318]
[1736129632446,3.12,215.84,215.66,3.12]
[1736129633331,2.3173,215.85,215.66,3.12]
[1736129633529,2.3173,215.85,215.78,2.3179]
[1736129634328,3.29467229,215.87,215.77,2.318]
[1736129634527,3.12,215.86,215.74,4.4235]
[1736129635026,2.3173,215.84,215.74,4.4235]
[1736129635430,3.12,215.86,215.74,4.4235]
[1736129635731,2.3172,215.85,215.78,2.3179]
[1736129637732,2.3172,215.85,215.79,2.3178]
[1736129638730,3.12,215.86,215.8,2.3177]
[1736129639533,3.12,215.86,215.74,4.4235]
[1736129639832,3.06,215.89,215.84,2.3172]
[1736129640035,5.3767,215.9,215.84,2.3172]
[1736129640345,3.06,215.92,215.74,4.4235]
[1736129641437,2.3168,215.89,215.84,2.3172]
[1736129642031,2.3166,215.91,215.85,2.3171]
[1736129642642,2.3166,215.91,215.86,2.317]
[1736129643741,3.06,215.92,215.79,3.06]
[1736129643938,3.06,215.92,215.74,4.4235]
[1736129643939,2.3169,215.89,215.74,4.4235]
[1736129644147,2.3169,215.89,215.77,3.06]
[1736129644442,2.3167,215.9,215.85,2.3172]
[1736129646032,3.06,215.92,215.77,3.06]
[1736129646238,2.3164,215.94,215.77,3.06]
[1736129646439,5.3764,215.94,215.77,3.06]
[1736129647443,2.3162,215.95,215.77,3.06]
[1736129647641,5.3762,215.95,215.77,3.06]
[1736129647841,3.06,215.95,215.77,3.06]
[1736129649835,3.06,215.95,215.74,4.4235]
[1736129650040,3.06,215.95,215.75,3.06]
[1736129650839,3.06,215.95,215.81,2.3177]
[1736129651045,3.06,215.95,215.74,4.4235]
[1736129651244,2.18705212,215.94,215.75,3.06]
[1736129651439,1.4417,215.94,215.74,4.4235]
[1736129651644,0.74539599,215.93,215.74,4.4235]
[1736129652041,2.8371,215.92,215.76,2.3182]
[1736129652247,0.74549732,215.91,215.74,4.4235]
[1736129652544,0.74549732,215.91,215.65,6.16167191]
[1736129652746,0.74549732,215.91,215.66,7.5358]
[1736129653341,0.74549732,215.91,215.67,3.06]
[1736129653646,2.3174,215.84,215.67,3.06]
[1736129653845,3.06,215.83,215.67,3.06]
[1736129654944,5.3776,215.83,215.67,3.06]
[1736129655343,3.06,215.83,215.67,3.06]
[1736129655548,3.06,215.83,215.79,2.3179]
[1736129657143,2.3172,215.86,215.79,2.3179]
[1736129658047,3.06,215.87,215.75,2.8657]
[1736129658347,2.3174,215.84,215.75,2.8657]
[1736129658847,2.3174,215.84,215.79,2.3179]
[1736129659244,2.3174,215.84,215.75,2.8657]
[1736129659547,2.3174,215.84,215.79,2.3179]
[1736129659739,3.06,215.87,215.75,1.4275]
[1736129659945,3.06,215.87,215.67,10.60357191]
[1736129660147,1.4441,215.86,215.73,2.3186]
[1736129660450,2.318,215.79,215.73,2.3186]
[1736129660652,3.06,215.78,215.68,2.8843]
[1736129660845,3.06,215.78,215.75,2.3183]
[1736129661349,3.06,215.78,215.71,2.3188]
[1736129661553,3.06,215.78,215.68,2.8843]
[1736129661744,3.06,215.82,215.68,2.8843]
[1736129663246,3.06,215.82,215.75,2.3183]
[1736129663247,5.3776,215.82,215.75,2.3183]
[1736129663551,3.06,215.82,215.68,2.8843]
[1736129663945,3.06,215.82,215.71,2.3187]
[1736129664145,3.06,215.82,215.68,2.8843]
[1736129664344,2.9784,215.81,215.68,2.8843]
[1736129664553,2.3184,215.75,215.68,5.2033]
[1736129664850,3.06,215.75,215.68,2.8843]
[1736129665050,3.06,215.75,215.69,2.319]
[1736129665255,3.06,215.75,215.68,2.8843]
[1736129665549,2.3182,215.77,215.68,2.8843]
[1736129665550,3.06,215.79,215.68,2.8843]
[1736129667452,3.06,215.79,215.75,2.3183]
[1736129668676,3.06,215.79,215.68,2.8843]
[1736129668853,3.06,215.79,215.76,2.3182]
[1736129671849,2.3174,215.85,215.79,2.3179]
[1736129672057,3.0,215.84,215.68,2.8843]
[1736129672255,3.0,215.87,215.68,2.8843]